Workbook

Sheet PLL
A2: Time | B2: FX | C2: SX | D2: PX | E2: PD | F2: LP | G2: OP | I2: SR | J2: 12000 | L2: Hz | P2: K | Q2: 4000 | S2: =KpKv | U2: RC Filter | V2: A = Exp(-2*pi()*Fc/Fs)
A3: 0 | B3: 1270 | C3: 0 | D3: 0 | E3: 0 | F3: 0 | G3: 0 | I3: K | J3: 4000 | P3: R1 | Q3: 7500 | R3: R | U3: SR | V3: 12000 | W3: Sample Frequency
A4: 1 | B4: 1270 | C4: 0 | D4: 0 | E4: 0 | F4: 0 | G4: 0 | I4: D | J4: =Q10 -> 0.7122353887 | P4: R2 | Q4: 3300 | R4: R | U4: LPF | V4: 240 | W4: Corner Frequency
A5: 2 | B5: 1270 | C5: 0 | D5: 0 | E5: 0 | F5: 0 | G5: 0 | I5: LPF | J5: =Q8 -> 240 | L5: Hz | P5: C | Q5: 1e-07 | R5: F | U5: D2 | V5: 128 | W5: Divisor
A6: 3 | B6: 1270 | C6: 0 | D6: 0 | E6: 0 | F6: 0 | G6: 0 | I6: WN | J6: =Q9 -> 2455.984099 | L6: =J6/2/PI() -> 390.8820095 | M6: Hz | P6: T1 | Q6: =Q3*Q5 -> 0.00075 | U6: A | V6: =INT(V5*EXP(-2*PI()*V4/V3)+0.5) -> 113 | W6: Constant
A7: 4 | B7: 1270 | C7: 1 | D7: 0 | E7: 1 | F7: 1328 | G7: 19 | I7: Fmin | J7: 800 | L7: Hz | P7: T2 | Q7: =Q4*Q5 -> 0.00033 | U7: LP=PD+A*(LP-PD)/D
A8: 5 | B8: 1270 | C8: 1 | D8: 0 | E8: 1 | F8: 1479 | G8: 54 | I8: Fmax | J8: =J7+J2/65535*J3 -> 1532.433051 | K8: =Fmin+K*SR/65536 | L8: Hz | P8: LPF | Q8: =V4 -> 240 | R8: Hz | U8: Stages | V8: 2
A9: 6 | B9: 1270 | C9: 1 | D9: 1 | E9: 0 | F9: 338 | G9: 85 | I9: Lock Time | J9: =2*PI()/J6 -> 0.00255831677 | K9: =2*Pi/WN | L9: s | M9: =12000*J9 -> 30.69980124 | N9: ticks | P9: WN | Q9: =SQRT(Q2*2*PI()*Q8) -> 2455.984099 | S9: =sqrt(K*2*Pi*LPF) | U9: LPF | V9: =V4*(2^(1/V8)-1)^0.5 -> 154.4626207 | W9: ~BAUD/2
A10: 7 | B10: 1270 | C10: 1 | D10: 1 | E10: 0 | F10: 312 | G10: 112 | I10: Lock Range | J10: =2*J4*J6 -> 3498.477579 | K10: =2*D*WN | L10: Hz | P10: D | Q10: =Q9/2*(Q7+1/Q2) -> 0.7122353887 | S10: =WN/2*(T2+1/K)
A11: 8 | B11: 1270 | C11: 1 | D11: 1 | E11: 0 | F11: 289 | G11: 136 | I11: Mid Point | J11: =(1170-J7)*65536/J2 -> 2020.693333
A12: 9 | B12: 1270 | C12: 0 | D12: 1 | E12: 1 | F12: 1595 | G12: 175
A13: 10 | B13: 1270 | C13: 0 | D13: 1 | E13: 1 | F13: 1727 | G13: 227
A14: 11 | B14: 1270 | C14: 0 | D14: 1 | E14: 1 | F14: 1895 | G14: 290
A15: 12 | B15: 1270 | C15: 0 | D15: 0 | E15: 0 | F15: 676 | G15: 345
A16: 13 | B16: 1270 | C16: 0 | D16: 0 | E16: 0 | F16: 672 | G16: 392
A17: 14 | B17: 1270 | C17: 1 | D17: 0 | E17: 1 | F17: 1904 | G17: 449
A18: 15 | B18: 1270 | C18: 1 | D18: 0 | E18: 1 | F18: 2058 | G18: 516
A19: 16 | B19: 1270 | C19: 1 | D19: 0 | E19: 1 | F19: 2156 | G19: 591
A20: 17 | B20: 1270 | C20: 1 | D20: 0 | E20: 1 | F20: 2292 | G20: 673
A21: 18 | B21: 1270 | C21: 0 | D21: 1 | E21: 1 | F21: 2372 | G21: 760
A22: 19 | B22: 1270 | C22: 0 | D22: 1 | E22: 1 | F22: 2492 | G22: 852
A23: 20 | B23: 1270 | C23: 0 | D23: 1 | E23: 1 | F23: 2557 | G23: 947
A24: 21 | B24: 1270 | C24: 0 | D24: 1 | E24: 1 | F24: 2664 | G24: 1045
A25: 22 | B25: 1270 | C25: 0 | D25: 1 | E25: 1 | F25: 2716 | G25: 1144
A26: 23 | B26: 1270 | C26: 1 | D26: 0 | E26: 1 | F26: 2811 | G26: 1244
A27: 24 | B27: 1270 | C27: 1 | D27: 0 | E27: 1 | F27: 2852 | G27: 1345
A28: 25 | B28: 1270 | C28: 1 | D28: 0 | E28: 1 | F28: 2937 | G28: 1445
A29: 26 | B29: 1270 | C29: 1 | D29: 0 | E29: 1 | F29: 2969 | G29: 1544
A30: 27 | B30: 1270 | C30: 1 | D30: 1 | E30: 0 | F30: 1717 | G30: 1624
A31: 28 | B31: 1270 | C31: 0 | D31: 1 | E31: 1 | F31: 2918 | G31: 1704
A32: 29 | B32: 1270 | C32: 0 | D32: 1 | E32: 1 | F32: 2951 | G32: 1784
A33: 30 | B33: 1270 | C33: 0 | D33: 1 | E33: 1 | F33: 3029 | G33: 1863
A34: 31 | B34: 1270 | C34: 0 | D34: 1 | E34: 1 | F34: 3054 | G34: 1941
A35: 32 | B35: 1270 | C35: 0 | D35: 0 | E35: 0 | F35: 1796 | G35: 2000
A36: 33 | B36: 1270 | C36: 1 | D36: 0 | E36: 1 | F36: 2990 | G36: 2060
A37: 34 | B37: 1270 | C37: 1 | D37: 0 | E37: 1 | F37: 3018 | G37: 2120
A38: 35 | B38: 1270 | C38: 1 | D38: 0 | E38: 1 | F38: 3090 | G38: 2180
A39: 36 | B39: 1270 | C39: 1 | D39: 0 | E39: 1 | F39: 3111 | G39: 2240
A40: 37 | B40: 1270 | C40: 0 | D40: 1 | E40: 1 | F40: 3176 | G40: 2299
A41: 38 | B41: 1270 | C41: 0 | D41: 1 | E41: 1 | F41: 3191 | G41: 2358
A42: 39 | B42: 1270 | C42: 0 | D42: 1 | E42: 1 | F42: 3250 | G42: 2416
A43: 40 | B43: 1070 | C43: 0 | D43: 1 | E43: 1 | F43: 3259 | G43: 2473
A44: 41 | B44: 1070 | C44: 0 | D44: 0 | E44: 0 | F44: 1985 | G44: 2511
A45: 42 | B45: 1070 | C45: 1 | D45: 0 | E45: 1 | F45: 3166 | G45: 2549
A46: 43 | B46: 1070 | C46: 1 | D46: 0 | E46: 1 | F46: 3180 | G46: 2588
A47: 44 | B47: 1070 | C47: 1 | D47: 0 | E47: 1 | F47: 3241 | G47: 2627
A48: 45 | B48: 1070 | C48: 1 | D48: 1 | E48: 0 | F48: 1922 | G48: 2648
A49: 46 | B49: 1070 | C49: 1 | D49: 1 | E49: 0 | F49: 1826 | G49: 2653
A50: 47 | B50: 1070 | C50: 1 | D50: 1 | E50: 0 | F50: 1643 | G50: 2642
A51: 48 | B51: 1070 | C51: 0 | D51: 1 | E51: 1 | F51: 2896 | G51: 2637
A52: 49 | B52: 1070 | C52: 0 | D52: 1 | E52: 1 | F52: 2884 | G52: 2636
A53: 50 | B53: 1070 | C53: 0 | D53: 0 | E53: 0 | F53: 1685 | G53: 2622
A54: 51 | B54: 1070 | C54: 0 | D54: 0 | E54: 0 | F54: 1513 | G54: 2596
A55: 52 | B55: 1070 | C55: 0 | D55: 0 | E55: 0 | F55: 1447 | G55: 2560
A56: 53 | B56: 1070 | C56: 0 | D56: 0 | E56: 0 | F56: 1293 | G56: 2514
A57: 54 | B57: 1070 | C57: 1 | D57: 0 | E57: 1 | F57: 2571 | G57: 2479
A58: 55 | B58: 1070 | C58: 1 | D58: 0 | E58: 1 | F58: 2584 | G58: 2453
A59: 56 | B59: 1070 | C59: 1 | D59: 1 | E59: 0 | F59: 1407 | G59: 2419
A60: 57 | B60: 1070 | C60: 1 | D60: 1 | E60: 0 | F60: 1256 | G60: 2376
A61: 58 | B61: 1070 | C61: 1 | D61: 1 | E61: 0 | F61: 1209 | G61: 2326
A62: 59 | B62: 1070 | C62: 0 | D62: 1 | E62: 1 | F62: 2401 | G62: 2288
A63: 60 | B63: 1070 | C63: 0 | D63: 1 | E63: 1 | F63: 2519 | G63: 2262
A64: 61 | B64: 1070 | C64: 0 | D64: 0 | E64: 0 | F64: 1254 | G64: 2228
A65: 62 | B65: 1070 | C65: 0 | D65: 0 | E65: 0 | F65: 1207 | G65: 2187
A66: 63 | B66: 1070 | C66: 0 | D66: 0 | E66: 0 | F66: 1071 | G66: 2140
A67: 64 | B67: 1070 | C67: 0 | D67: 0 | E67: 0 | F67: 1037 | G67: 2088
A68: 65 | B68: 1070 | C68: 1 | D68: 0 | E68: 1 | F68: 2242 | G68: 2049
A69: 66 | B69: 1070 | C69: 1 | D69: 0 | E69: 1 | F69: 2371 | G69: 2023
A70: 67 | B70: 1070 | C70: 1 | D70: 1 | E70: 0 | F70: 1118 | G70: 1991
A71: 68 | B71: 1070 | C71: 1 | D71: 1 | E71: 0 | F71: 1080 | G71: 1953
A72: 69 | B72: 1070 | C72: 1 | D72: 1 | E72: 0 | F72: 954 | G72: 1909
A73: 70 | B73: 1070 | C73: 1 | D73: 1 | E73: 0 | F73: 929 | G73: 1862
A74: 71 | B74: 1070 | C74: 0 | D74: 1 | E74: 1 | F74: 2142 | G74: 1829
A75: 72 | B75: 1070 | C75: 0 | D75: 0 | E75: 0 | F75: 951 | G75: 1791
A76: 73 | B76: 1070 | C76: 0 | D76: 0 | E76: 0 | F76: 881 | G76: 1749
A77: 74 | B77: 1070 | C77: 0 | D77: 0 | E77: 0 | F77: 815 | G77: 1703
A78: 75 | B78: 1070 | C78: 0 | D78: 0 | E78: 0 | F78: 755 | G78: 1654
A79: 76 | B79: 1070 | C79: 1 | D79: 0 | E79: 1 | F79: 2026 | G79: 1621
A80: 77 | B80: 1070 | C80: 1 | D80: 0 | E80: 1 | F80: 2126 | G80: 1602
A81: 78 | B81: 1070 | C81: 1 | D81: 1 | E81: 0 | F81: 936 | G81: 1578
A82: 79 | B82: 1070 | C82: 1 | D82: 1 | E82: 0 | F82: 867 | G82: 1550
A83: 80 | B83: 1270 | C83: 1 | D83: 1 | E83: 0 | F83: 802 | G83: 1517
A84: 81 | B84: 1270 | C84: 0 | D84: 1 | E84: 1 | F84: 2071 | G84: 1499
A85: 82 | B85: 1270 | C85: 0 | D85: 1 | E85: 1 | F85: 2166 | G85: 1494
A86: 83 | B86: 1270 | C86: 0 | D86: 1 | E86: 1 | F86: 2303 | G86: 1503
A87: 84 | B87: 1270 | C87: 0 | D87: 0 | E87: 0 | F87: 1053 | G87: 1503
A88: 85 | B88: 1270 | C88: 0 | D88: 0 | E88: 0 | F88: 1022 | G88: 1496
A89: 86 | B89: 1270 | C89: 1 | D89: 0 | E89: 1 | F89: 2227 | G89: 1501
A90: 87 | B90: 1270 | C90: 1 | D90: 0 | E90: 1 | F90: 2358 | G90: 1517
A91: 88 | B91: 1270 | C91: 1 | D91: 0 | E91: 1 | F91: 2433 | G91: 1542
A92: 89 | B92: 1270 | C92: 1 | D92: 1 | E92: 0 | F92: 1221 | G92: 1557
A93: 90 | B93: 1270 | C93: 1 | D93: 1 | E93: 0 | F93: 1130 | G93: 1563
A94: 91 | B94: 1270 | C94: 0 | D94: 1 | E94: 1 | F94: 2374 | G94: 1579
A95: 92 | B95: 1270 | C95: 0 | D95: 1 | E95: 1 | F95: 2448 | G95: 1604
A96: 93 | B96: 1270 | C96: 0 | D96: 1 | E96: 1 | F96: 2562 | G96: 1636
A97: 94 | B97: 1270 | C97: 0 | D97: 0 | E97: 0 | F97: 1294 | G97: 1657
A98: 95 | B98: 1270 | C98: 0 | D98: 0 | E98: 0 | F98: 1244 | G98: 1667
A99: 96 | B99: 1270 | C99: 1 | D99: 0 | E99: 1 | F99: 2433 | G99: 1686
A100: 97 | B100: 1270 | C100: 1 | D100: 0 | E100: 1 | F100: 2549 | G100: 1713
A101: 98 | B101: 1270 | C101: 1 | D101: 0 | E101: 1 | F101: 2610 | G101: 1746
A102: 99 | B102: 1270 | C102: 1 | D102: 1 | E102: 0 | F102: 1384 | G102: 1767
A103: 100 | B103: 1270 | C103: 0 | D103: 1 | E103: 1 | F103: 2610 | G103: 1795
A104: 101 | B104: 1270 | C104: 0 | D104: 1 | E104: 1 | F104: 2665 | G104: 1829
A105: 102 | B105: 1270 | C105: 0 | D105: 1 | E105: 1 | F105: 2765 | G105: 1868
A106: 103 | B106: 1270 | C106: 0 | D106: 1 | E106: 1 | F106: 2808 | G106: 1912
A107: 104 | B107: 1270 | C107: 0 | D107: 0 | E107: 0 | F107: 1570 | G107: 1941
A108: 105 | B108: 1270 | C108: 1 | D108: 0 | E108: 1 | F108: 2779 | G108: 1975
A109: 106 | B109: 1270 | C109: 1 | D109: 0 | E109: 1 | F109: 2825 | G109: 2014
A110: 107 | B110: 1270 | C110: 1 | D110: 0 | E110: 1 | F110: 2909 | G110: 2056
A111: 108 | B111: 1270 | C111: 1 | D111: 0 | E111: 1 | F111: 2946 | G111: 2101
A112: 109 | B112: 1270 | C112: 1 | D112: 1 | E112: 0 | F112: 1693 | G112: 2131
A113: 110 | B113: 1270 | C113: 0 | D113: 1 | E113: 1 | F113: 2898 | G113: 2165
A114: 111 | B114: 1270 | C114: 0 | D114: 1 | E114: 1 | F114: 2930 | G114: 2202
A115: 112 | B115: 1270 | C115: 0 | D115: 1 | E115: 1 | F115: 3012 | G115: 2242
A116: 113 | B116: 1270 | C116: 0 | D116: 0 | E116: 0 | F116: 1707 | G116: 2266
A117: 114 | B117: 1270 | C117: 1 | D117: 0 | E117: 1 | F117: 2958 | G117: 2294
A118: 115 | B118: 1270 | C118: 1 | D118: 0 | E118: 1 | F118: 2938 | G118: 2325
A119: 116 | B119: 1270 | C119: 1 | D119: 0 | E119: 1 | F119: 3067 | G119: 2359
A120: 117 | B120: 1270 | C120: 1 | D120: 0 | E120: 1 | F120: 3039 | G120: 2395
A121: 118 | B121: 1270 | C121: 1 | D121: 1 | E121: 0 | F121: 1832 | G121: 2416
A122: 119 | B122: 1270 | C122: 0 | D122: 1 | E122: 1 | F122: 2974 | G122: 2440
A123: 120 | B123: 1070 | C123: 0 | D123: 1 | E123: 1 | F123: 3053 | G123: 2467
A124: 121 | B124: 1070 | C124: 0 | D124: 1 | E124: 1 | F124: 3073 | G124: 2497
A125: 122 | B125: 1070 | C125: 0 | D125: 1 | E125: 1 | F125: 3145 | G125: 2529
A126: 123 | B126: 1070 | C126: 0 | D126: 0 | E126: 0 | F126: 1830 | G126: 2544
A127: 124 | B127: 1070 | C127: 0 | D127: 0 | E127: 0 | F127: 1744 | G127: 2545
A128: 125 | B128: 1070 | C128: 1 | D128: 0 | E128: 1 | F128: 2892 | G128: 2551
A129: 126 | B129: 1070 | C129: 1 | D129: 0 | E129: 1 | F129: 2978 | G129: 2561
A130: 127 | B130: 1070 | C130: 1 | D130: 1 | E130: 0 | F130: 1675 | G130: 2556
A131: 128 | B131: 1070 | C131: 1 | D131: 1 | E131: 0 | F131: 1601 | G131: 2539
A132: 129 | B132: 1070 | C132: 1 | D132: 1 | E132: 0 | F132: 1431 | G132: 2510
A133: 130 | B133: 1070 | C133: 0 | D133: 1 | E133: 1 | F133: 2704 | G133: 2490
A134: 131 | B134: 1070 | C134: 0 | D134: 1 | E134: 1 | F134: 2702 | G134: 2478
A135: 132 | B135: 1070 | C135: 0 | D135: 1 | E135: 1 | F135: 2849 | G135: 2473
A136: 133 | B136: 1070 | C136: 0 | D136: 0 | E136: 0 | F136: 1508 | G136: 2456
A137: 134 | B137: 1070 | C137: 0 | D137: 0 | E137: 0 | F137: 1494 | G137: 2429
A138: 135 | B138: 1070 | C138: 0 | D138: 0 | E138: 0 | F138: 1285 | G138: 2393
A139: 136 | B139: 1070 | C139: 1 | D139: 0 | E139: 1 | F139: 2615 | G139: 2368
A140: 137 | B140: 1070 | C140: 1 | D140: 0 | E140: 1 | F140: 2573 | G140: 2351
A141: 138 | B141: 1070 | C141: 1 | D141: 1 | E141: 0 | F141: 1448 | G141: 2325
A142: 139 | B142: 1070 | C142: 1 | D142: 1 | E142: 0 | F142: 1243 | G142: 2290
A143: 140 | B143: 1070 | C143: 1 | D143: 1 | E143: 0 | F143: 1248 | G143: 2248
A144: 141 | B144: 1070 | C144: 1 | D144: 1 | E144: 0 | F144: 1058 | G144: 2199
A145: 142 | B145: 1070 | C145: 0 | D145: 1 | E145: 1 | F145: 2404 | G145: 2164
A146: 143 | B146: 1070 | C146: 0 | D146: 0 | E146: 0 | F146: 1051 | G146: 2121
A147: 144 | B147: 1070 | C147: 0 | D147: 0 | E147: 0 | F147: 1116 | G147: 2074
A148: 145 | B148: 1070 | C148: 0 | D148: 0 | E148: 0 | F148: 890 | G148: 2021
A149: 146 | B149: 1070 | C149: 0 | D149: 0 | E149: 0 | F149: 967 | G149: 1965
A150: 147 | B150: 1070 | C150: 1 | D150: 0 | E150: 1 | F150: 2080 | G150: 1923
A151: 148 | B151: 1070 | C151: 1 | D151: 0 | E151: 1 | F151: 2318 | G151: 1895
A152: 149 | B152: 1070 | C152: 1 | D152: 1 | E152: 0 | F152: 972 | G152: 1861
A153: 150 | B153: 1070 | C153: 1 | D153: 1 | E153: 0 | F153: 1042 | G153: 1823
A154: 151 | B154: 1070 | C154: 1 | D154: 1 | E154: 0 | F154: 822 | G154: 1779
A155: 152 | B155: 1070 | C155: 1 | D155: 1 | E155: 0 | F155: 903 | G155: 1733
A156: 153 | B156: 1070 | C156: 0 | D156: 1 | E156: 1 | F156: 2022 | G156: 1701
A157: 154 | B157: 1070 | C157: 0 | D157: 1 | E157: 1 | F157: 2264 | G157: 1684
A158: 155 | B158: 1070 | C158: 0 | D158: 0 | E158: 0 | F158: 922 | G158: 1660
A159: 156 | B159: 1070 | C159: 0 | D159: 0 | E159: 0 | F159: 996 | G159: 1632
A160: 157 | B160: 1070 | C160: 0 | D160: 0 | E160: 0 | F160: 779 | G160: 1598
A161: 158 | B161: 1070 | C161: 1 | D161: 0 | E161: 1 | F161: 2192 | G161: 1580
A162: 159 | B162: 1070 | C162: 1 | D162: 0 | E162: 1 | F162: 2136 | G162: 1574
A163: 160 | B163: 1270 | C163: 1 | D163: 1 | E163: 0 | F163: 1089 | G163: 1562
A164: 161 | B164: 1270 | C164: 1 | D164: 1 | E164: 0 | F164: 865 | G164: 1543
A165: 162 | B165: 1270 | C165: 1 | D165: 1 | E165: 0 | F165: 943 | G165: 1520
A166: 163 | B166: 1270 | C166: 0 | D166: 1 | E166: 1 | F166: 2058 | G166: 1509
A167: 164 | B167: 1270 | C167: 0 | D167: 1 | E167: 1 | F167: 2298 | G167: 1513
A168: 165 | B168: 1270 | C168: 0 | D168: 1 | E168: 1 | F168: 2281 | G168: 1527
A169: 166 | B169: 1270 | C169: 0 | D169: 0 | E169: 0 | F169: 1176 | G169: 1533
A170: 167 | B170: 1270 | C170: 0 | D170: 0 | E170: 0 | F170: 993 | G170: 1529
A171: 168 | B171: 1270 | C171: 1 | D171: 0 | E171: 1 | F171: 2343 | G171: 1538
A172: 169 | B172: 1270 | C172: 1 | D172: 0 | E172: 1 | F172: 2323 | G172: 1556
A173: 170 | B173: 1270 | C173: 1 | D173: 0 | E173: 1 | F173: 2543 | G173: 1584
A174: 171 | B174: 1270 | C174: 1 | D174: 1 | E174: 0 | F174: 1180 | G174: 1600
A175: 172 | B175: 1270 | C175: 1 | D175: 1 | E175: 0 | F175: 1235 | G175: 1607
A176: 173 | B176: 1270 | C176: 0 | D176: 1 | E176: 1 | F176: 2328 | G176: 1623
A177: 174 | B177: 1270 | C177: 0 | D177: 1 | E177: 1 | F177: 2548 | G177: 1648
A178: 175 | B178: 1270 | C178: 0 | D178: 1 | E178: 1 | F178: 2512 | G178: 1680
A179: 176 | B179: 1270 | C179: 0 | D179: 0 | E179: 0 | F179: 1391 | G179: 1701
A180: 177 | B180: 1270 | C180: 1 | D180: 0 | E180: 1 | F180: 2519 | G180: 1728
A181: 178 | B181: 1270 | C181: 1 | D181: 0 | E181: 1 | F181: 2678 | G181: 1762
A182: 179 | B182: 1270 | C182: 1 | D182: 0 | E182: 1 | F182: 2680 | G182: 1802
A183: 180 | B183: 1270 | C183: 1 | D183: 0 | E183: 1 | F183: 2827 | G183: 1847
A184: 181 | B184: 1270 | C184: 1 | D184: 1 | E184: 0 | F184: 1490 | G184: 1877
A185: 182 | B185: 1270 | C185: 0 | D185: 1 | E185: 1 | F185: 2803 | G185: 1913
A186: 183 | B186: 1270 | C186: 0 | D186: 1 | E186: 1 | F186: 2749 | G186: 1953
A187: 184 | B187: 1270 | C187: 0 | D187: 1 | E187: 1 | F187: 2937 | G187: 1998
A188: 185 | B188: 1270 | C188: 0 | D188: 1 | E188: 1 | F188: 2873 | G188: 2045
A189: 186 | B189: 1270 | C189: 0 | D189: 0 | E189: 0 | F189: 1724 | G189: 2077
A190: 187 | B190: 1270 | C190: 1 | D190: 0 | E190: 1 | F190: 2828 | G190: 2113
A191: 188 | B191: 1270 | C191: 1 | D191: 0 | E191: 1 | F191: 2964 | G191: 2152
A192: 189 | B192: 1270 | C192: 1 | D192: 0 | E192: 1 | F192: 2945 | G192: 2194
A193: 190 | B193: 1270 | C193: 1 | D193: 0 | E193: 1 | F193: 3072 | G193: 2239
A194: 191 | B194: 1270 | C194: 1 | D194: 1 | E194: 0 | F194: 1717 | G194: 2267
A195: 192 | B195: 1270 | C195: 0 | D195: 1 | E195: 1 | F195: 3013 | G195: 2299
A196: 193 | B196: 1270 | C196: 0 | D196: 1 | E196: 1 | F196: 2944 | G196: 2333
A197: 194 | B197: 1270 | C197: 0 | D197: 1 | E197: 1 | F197: 3117 | G197: 2370 | L197: }
A198: 195 | B198: 1270 | C198: 0 | D198: 0 | E198: 0 | F198: 1712 | G198: 2390 | L198: }
A199: 196 | B199: 1270 | C199: 1 | D199: 0 | E199: 1 | F199: 3055 | G199: 2415
A200: 197 | B200: 1270 | C200: 1 | D200: 0 | E200: 1 | F200: 2936 | G200: 2442
A201: 198 | B201: 1270 | C201: 1 | D201: 0 | E201: 1 | F201: 3157 | G201: 2472
... 42 more rows

Sheet Filter Plot
A1: Z Plot | E1: Loop Filter | K1: Z Transform | Q1: Output Filter | U1: PLL Calcs
A2: Sample Rate | B2: 12000 | C2: 256 | E2: R1 | F2: =V3 -> 7500 | G2: R | K2: K | L2: =H7*2*PI()/TAN(2*PI()*H7/2/B2) -> 23988.09133 | N2: b0 | O2: 0 | Q2: RC Filter | R2: A = Exp(-2*pi()*Fc/Fs) | U2: K | V2: 4000 | X2: =KpKv
A3: A0 | B3: =C3/$C$2 -> 0.33203125 | C3: =INT($C$2*L3+0.5) -> 85 | E3: R2 | F3: =V4 -> 3300 | G3: R | K3: B0 | L3: =(O2*$L$2*$L$2+O3*$L$2+O4)/($O$5*$L$2*$L$2+$O$6*$L$2+$O$7) -> 0.3313644851 | N3: b1 | O3: =F6 -> 0.00033 | Q3: SR | R3: 12000 | S3: Sample Frequency | U3: R1 | V3: 7500 | W3: R
A4: A1 | B4: =C4/$C$2 -> 0.07421875 | C4: =INT($C$2*L4+0.5) -> 19 | E4: C | F4: =V5 -> 1e-07 | G4: F | K4: B1 | L4: =(2*O4-2*O2*$L$2*$L$2)/($O$5*$L$2*$L$2+$O$6*$L$2+$O$7) -> 0.07432971698 | N4: b2 | O4: 1 | Q4: LPF | R4: 123.2796033 | S4: Corner Frequency | U4: R2 | V4: 3300 | W4: R
A5: A2 | B5: =C5/$C$2 -> -0.2578125 | C5: =INT($C$2*L5+0.5) -> -66 | E5: T1 | F5: =F2*F4 -> 0.00075 | G5: R1C | H5: =1/(2*PI()*F5) -> 212.2065908 | I5: Hz | K5: B2 | L5: =(O2*$L$2*$L$2-O3*$L$2+O4)/($O$5*$L$2*$L$2+$O$6*$L$2+$O$7) -> -0.2570347681 | N5: a0 | O5: 0 | Q5: D2 | R5: 16 | S5: Divisor | U5: C | V5: 1e-07 | W5: F
A6: B1 | B6: =C6/$C$2 -> 0.07421875 | C6: =INT($C$2*L6+0.5) -> 19 | E6: T2 | F6: =F3*F4 -> 0.00033 | G6: R2C | H6: =1/(2*PI()*F6) -> 482.2877063 | I6: Hz | K6: A1 | L6: =(2*O7-2*O5*$L$2*$L$2)/($O$5*$L$2*$L$2+$O$6*$L$2+$O$7) -> 0.07432971698 | N6: a1 | O6: =F7 -> 0.00108 | Q6: A | R6: =R5*EXP(-2*PI()*R4/R3) -> 14.99984208 | S6: Constant | U6: T1 | V6: =V3*V5 -> 0.00075
A7: B2 | B7: =C7/$C$2 -> -0.92578125 | C7: =INT($C$2*L7+0.5) -> -237 | E7: T3 | F7: =F5+F6 -> 0.00108 | G7: (R1+R2)*C | H7: =1/(2*PI()*F7) -> 147.365688 | I7: Hz | K7: A2 | L7: =(O5*$L$2*$L$2-$O$6*$L$2+O7)/($O$5*$L$2*$L$2+$O$6*$L$2+$O$7) -> -0.925670283 | N7: a2 | O7: 1 | Q7: LP=PD+A*(LP-PD)/D) | U7: T2 | V7: =V4*V5 -> 0.00033
U8: LPF | V8: =1/(2*PI()*(V6+V7)) -> 147.365688 | W8: Hz | X8: ~baud/2
U9: WN | V9: =SQRT(V2*2*PI()*V8) -> 1924.500897 | X9: =sqrt(K*2*Pi*LPF)
U10: D | V10: =V9/2*(V7+1/V2) -> 0.5581052602 | X10: =WN/2*(T2+1/K)
B12: S Plotter | D12: Recursive Filter Plotter
D13: Numerator | F13: Demoninator | H13: Z plot
A14: Frequency | B14: S Magn | C14: SPhase | D14: Real | E14: Imaginary | F14: Real | G14: Imaginary | H14: Z Magn | I14: Z Phase
A15: 1 | B15: =20*LOG10(SQRT(1+($A15*2*PI())^2*$F$6^2)/SQRT(1+($A15*2*PI())^2*$F$7^2)) -> -0.000181306549 | C15: =(ATAN2(1,2*PI()*$A15*$F$6)-ATAN2(1,2*PI()*$A15*$F$7))*180/PI() -> -0.2699942026 | D15: =$B$3*COS(0*2*PI()*$A15/$B$2)+$B$4*COS(1*2*PI()*$A15/$B$2)+$B$5*COS(2*2*PI()*$A15/$B$2) -> 0.1484376312 | E15: =$B$3*SIN(0*2*PI()*$A15/$B$2)+$B$4*SIN(1*2*PI()*$A15/$B$2)+$B$5*SIN(2*2*PI()*$A15/$B$2) -> -0.0002311197245 | F15: =1*COS(0*2*PI()*$A15/$B$2)+$B$6*COS(1*2*PI()*$A15/$B$2)+$B$7*COS(2*2*PI()*$A15/$B$2) -> 0.1484379974 | G15: =1*SIN(0*2*PI()*$A15/$B$2)+$B$6*SIN(1*2*PI()*$A15/$B$2)+$B$7*SIN(2*2*PI()*$A15/$B$2) -> -0.0009306148359 | H15: =20*LOG10(SQRT((D15*D15+E15*E15))/SQRT((F15*F15+G15*G15))) -> -0.0001815998125 | I15: =-(ATAN2(D15,E15)-ATAN2(F15,G15))*180/PI() -> -0.2699941917
A16: 10 | B16: =20*LOG10(SQRT(1+($A16*2*PI())^2*$F$6^2)/SQRT(1+($A16*2*PI())^2*$F$7^2)) -> -0.01808560986 | C16: =(ATAN2(1,2*PI()*$A16*$F$6)-ATAN2(1,2*PI()*$A16*$F$7))*180/PI() -> -2.694218866 | D16: 0.1484506187 | E16: -0.002311150152 | F16: 0.1484872438 | G16: -0.009305974698 | H16: =20*LOG10(SQRT((D16*D16+E16*E16))/SQRT((F16*F16+G16*G16))) -> -0.01811483153 | I16: =-(ATAN2(D16,E16)-ATAN2(F16,G16))*180/PI() -> -2.694207928
A17: 20 | B17: -0.07180308577 | C17: -5.35413918 | D17: 0.1484899731 | E17: -0.004622014899 | F17: 0.1486364697 | G17: -0.01861089693 | H17: -0.07191872592 | I17: -5.354052772
A18: 30 | B18: -0.1595828418 | C18: -7.947347912 | D18: 0.1485555587 | E18: -0.006932308868 | F18: 0.148885161 | G18: -0.02791371435 | H18: -0.1598385187 | I18: -7.947062222
A19: 40 | B19: -0.2789616504 | C19: -10.44495703 | D19: 0.148647368 | E19: -0.009241746751 | F19: 0.14923329 | G19: -0.03721337483 | H19: -0.279405517 | I19: -10.44429854
A20: 50 | B20: -0.4267835092 | C20: -12.8228086 | D20: 0.1487653902 | E20: -0.01155004334 | F20: 0.1496808181 | G20: -0.04650882661 | H20: -0.4274569925 | I20: -12.82156636
A21: 60 | B21: -0.5994327474 | C21: -15.06215172 | D21: 0.1489096116 | E21: -0.01385691354 | F21: 0.1502276953 | G21: -0.05579901838 | H21: -0.6003699693 | I21: -15.06009056
A22: 70 | B22: -0.7930672804 | C22: -17.14979793 | D22: 0.1490800156 | E22: -0.01616207244 | F22: 0.1508738609 | G22: -0.06508289943 | H22: -0.7942950946 | I22: -17.14667085
A23: 80 | B23: -1.003826419 | C23: -19.07783994 | D23: 0.1492765823 | E23: -0.01846523531 | F23: 0.1516192427 | G23: -0.07435941972 | H23: -1.005364925 | I23: -19.07339877
A24: 90 | B24: -1.227997471 | C24: -20.84306182 | D24: 0.1494992889 | E24: -0.02076611764 | F24: 0.1524637579 | G24: -0.08362753005 | H24: -1.229860833 | I24: -20.83706527
A25: 100 | B25: -1.462135268 | C25: -22.44617548 | D25: 0.1497481096 | E25: -0.02306443518 | F25: 0.1534073123 | G25: -0.09288618213 | H25: -1.464332677 | I25: -22.43839477
A26: 110 | B26: -1.703136523 | C26: -23.89100096 | D26: 0.1500230156 | E26: -0.02535990399 | F26: 0.154449801 | G26: -0.1021343287 | H26: -1.705673178 | I26: -23.88122311
A27: 120 | B27: -1.948275733 | C27: -25.18367687 | D27: 0.1503239748 | E27: -0.02765224041 | F27: 0.1555911079 | G27: -0.1113709238 | H27: -1.951153746 | I27: -25.17170615
A28: 130 | B28: -2.195211403 | C28: -26.33195517 | D28: 0.1506509524 | E28: -0.02994116116 | F28: 0.1568311059 | G28: -0.1205949224 | H28: -2.198430588 | I28: -26.31761319
A29: 140 | B29: -2.441971429 | C29: -27.34460664 | D29: 0.1510039105 | E29: -0.03222638336 | F29: 0.1581696569 | G29: -0.1298052813 | H29: -2.445529945 | I29: -27.32773158
A30: 150 | B30: -2.68692532 | C30: -28.2309432 | D30: 0.1513828081 | E30: -0.03450762451 | F30: 0.1596066118 | G30: -0.1390009586 | H30: -2.690820184 | I30: -28.21138843
A31: 160 | B31: -2.928749378 | C31: -29.00045003 | D31: 0.1517876011 | E31: -0.03678460258 | F31: 0.1611418107 | G31: -0.1481809139 | H31: -2.932976851 | I31: -28.97808256
A32: 170 | B32: -3.166389246 | C32: -29.66251399 | D32: 0.1522182426 | E32: -0.03905703602 | F32: 0.1627750826 | G32: -0.1573441087 | H32: -3.170945116 | I32: -29.63721279
A33: 180 | B33: -3.399022835 | C33: -30.22623188 | D33: 0.1526746827 | E33: -0.04132464379 | F33: 0.1645062457 | G33: -0.1664895063 | H33: -3.403902611 | I33: -30.19788634
A34: 190 | B34: -3.626025451 | C34: -30.70028256 | D34: 0.1531568684 | E34: -0.04358714539 | F34: 0.1663351072 | G34: -0.175616072 | H34: -3.631224503 | I34: -30.66879102
A35: 200 | B35: -3.846938152 | C35: -31.09284811 | D35: 0.1536647436 | E35: -0.04584426091 | F35: 0.1682614634 | G35: -0.1847227731 | H35: -3.85245179 | I35: -31.05811665
A36: 210 | B36: -4.061439721 | C36: -31.41157194 | D36: 0.1541982495 | E36: -0.04809571102 | F36: 0.1702850999 | G36: -0.1938085793 | H36: -4.067263249 | I36: -31.37351323
A37: 220 | B37: -4.269322323 | C37: -31.66354351 | D37: 0.154757324 | E37: -0.05034121706 | F37: 0.1724057913 | G37: -0.2028724623 | H37: -4.275451063 | I37: -31.62207595
A38: 230 | B38: -4.470470646 | C38: -31.85530199 | D38: 0.1553419024 | E38: -0.05258050102 | F38: 0.1746233014 | G38: -0.2119133965 | H38: -4.476899947 | I38: -31.81034893
A39: 240 | B39: -4.664844219 | C39: -31.99285259 | D39: 0.1559519168 | E39: -0.05481328561 | F39: 0.1769373833 | G39: -0.2209303587 | H39: -4.671569457 | I39: -31.94434177
A40: 250 | B40: -4.852462561 | C40: -32.08169123 | D40: 0.1565872962 | E40: -0.05703929424 | F40: 0.1793477794 | G40: -0.2299223283 | H40: -4.859479135 | I40: -32.02955421
A41: 260 | B41: -5.033392784 | C41: -32.12683399 | D41: 0.157247967 | E41: -0.05925825111 | F41: 0.1818542212 | G41: -0.2388882875 | H41: -5.040696104 | I41: -32.07100583
A42: 270 | B42: -5.207739304 | C42: -32.13284917 | D42: 0.1579338525 | E42: -0.06146988122 | F42: 0.1844564297 | G42: -0.2478272216 | H42: -5.215324785 | I42: -32.07326807
A43: 280 | B43: -5.375635349 | C43: -32.10389009 | D43: 0.158644873 | E43: -0.06367391037 | F43: 0.1871541149 | G43: -0.2567381185 | H43: -5.383498397 | I43: -32.04049716
A44: 290 | B44: -5.537235965 | C44: -32.04372764 | D44: 0.159380946 | E44: -0.06587006525 | F44: 0.1899469765 | G44: -0.2656199695 | H44: -5.545371976 | I44: -31.9764667
A45: 300 | B45: -5.692712295 | C45: -31.95578173 | D45: 0.1601419859 | E45: -0.06805807341 | F45: 0.1928347036 | G45: -0.2744717689 | H45: -5.701116644 | I45: -31.88459913
A46: 310 | B46: -5.842246907 | C46: -31.84315114 | D46: 0.1609279045 | E46: -0.07023766333 | F46: 0.1958169744 | G46: -0.2832925145 | H46: -5.850914948 | I46: -31.76799568
A47: 320 | B47: -5.986029993 | C47: -31.70864165 | D47: 0.1617386104 | E47: -0.07240856444 | F47: 0.1988934569 | G47: -0.2920812074 | H47: -5.994957057 | I47: -31.62946442
A48: 330 | B48: -6.124256302 | C48: -31.55479215 | D48: 0.1625740096 | E48: -0.07457050715 | F48: 0.2020638084 | G48: -0.3008368523 | H48: -6.133437694 | I48: -31.47154649
A49: 340 | B49: -6.257122659 | C49: -31.38389878 | D49: 0.1634340049 | E49: -0.07672322288 | F49: 0.2053276759 | G49: -0.3095584576 | H49: -6.266553663 | I49: -31.29654017
A50: 350 | B50: -6.384825991 | C50: -31.19803719 | D50: 0.1643184965 | E50: -0.07886644408 | F50: 0.208684696 | G50: -0.3182450354 | H50: -6.394501871 | I50: -31.1065232
A51: 360 | B51: -6.50756175 | C51: -30.99908284 | D51: 0.1652273816 | E51: -0.0809999043 | F51: 0.2121344946 | G51: -0.3268956016 | H51: -6.517477757 | I51: -30.90337307
A52: 370 | B52: -6.625522681 | C52: -30.78872961 | D52: 0.1661605548 | E52: -0.08312333815 | F52: 0.2156766876 | G52: -0.3355091762 | H52: -6.635674055 | I52: -30.68878561
A53: 380 | B53: -6.738897856 | C53: -30.5685067 | D53: 0.1671179075 | E53: -0.0852364814 | F53: 0.2193108804 | G53: -0.3440847833 | H53: -6.749279832 | I53: -30.46429193
A54: 390 | B54: -6.847871941 | C54: -30.33979405 | D54: 0.1680993285 | E54: -0.08733907098 | F54: 0.2230366684 | G54: -0.352621451 | H54: -6.858479756 | I54: -30.23127384
A55: 400 | B55: -6.952624646 | C55: -30.10383633 | D55: 0.1691047039 | E55: -0.08943084499 | F55: 0.2268536365 | G55: -0.361118212 | H55: -6.963453545 | I55: -29.99097779
A56: 410 | B56: -7.053330324 | C56: -29.86175559 | D56: 0.1701339169 | E56: -0.09151154277 | F56: 0.2307613596 | G56: -0.3695741032 | H56: -7.064375567 | I56: -29.74452759
A57: 420 | B57: -7.1501577 | C57: -29.61456281 | D57: 0.1711868477 | E57: -0.09358090491 | F57: 0.2347594025 | G57: -0.3779881661 | H57: -7.161414568 | I57: -29.4929359
A58: 430 | B58: -7.243269695 | C58: -29.36316833 | D58: 0.1722633741 | E58: -0.09563867326 | F58: 0.2388473198 | G58: -0.3863594467 | H58: -7.254733495 | I58: -29.2371147
A59: 440 | B59: -7.332823332 | C59: -29.10839129 | D59: 0.173363371 | E59: -0.09768459099 | F59: 0.2430246562 | G59: -0.3946869958 | H59: -7.344489403 | I59: -28.97788469
A60: 450 | B60: -7.418969707 | C60: -28.85096818 | D60: 0.1744867105 | E60: -0.09971840262 | F60: 0.2472909463 | G60: -0.4029698692 | H60: -7.430833431 | I60: -28.7159839
A61: 460 | B61: -7.50185402 | C61: -28.59156063 | D61: 0.1756332621 | E61: -0.101739854 | F61: 0.251645715 | G61: -0.4112071275 | H61: -7.51391082 | I61: -28.4520754
A62: 470 | B62: -7.581615634 | C62: -28.33076242 | D62: 0.1768028924 | E62: -0.1037486924 | F62: 0.2560884772 | G62: -0.4193978361 | H62: -7.593860984 | I62: -28.1867544
A63: 480 | B63: -7.658388182 | C63: -28.06910587 | D63: 0.1779954655 | E63: -0.1057446665 | F63: 0.2606187379 | G63: -0.427541066 | H63: -7.670817608 | I63: -27.92055455
A64: 490 | B64: -7.732299686 | C64: -27.80706757 | D64: 0.1792108428 | E64: -0.1077275265 | F64: 0.2652359925 | G64: -0.4356358932 | H64: -7.744908774 | I64: -27.65395374
A65: 500 | B65: -7.803472704 | C65: -27.54507367 | D65: 0.180448883 | E65: -0.109697024 | F65: 0.2699397266 | G65: -0.443681399 | H65: -7.816257102 | I65: -27.38737934
A66: 510 | B66: -7.872024489 | C66: -27.28350455 | D66: 0.1817094421 | E66: -0.1116529121 | F66: 0.2747294162 | G66: -0.4516766702 | H66: -7.88497991 | I66: -27.12121292
A67: 520 | B67: -7.938067156 | C67: -27.02269917 | D67: 0.1829923734 | E67: -0.1135949454 | F67: 0.2796045278 | G67: -0.4596207993 | H67: -7.951189382 | I67: -26.85579458
A68: 530 | B68: -8.00170786 | C68: -26.76295896 | D68: 0.1842975279 | E68: -0.1155228803 | F68: 0.2845645181 | G68: -0.4675128843 | H68: -8.014992743 | I68: -26.5914268
A69: 540 | B69: -8.063048973 | C69: -26.50455132 | D69: 0.1856247537 | E69: -0.1174364744 | F69: 0.2896088347 | G69: -0.4753520289 | H69: -8.076492441 | I69: -26.32837801
A70: 550 | B70: -8.12218827 | C70: -26.24771288 | D70: 0.1869738964 | E70: -0.1193354874 | F70: 0.2947369155 | G70: -0.4831373428 | H70: -8.135786323 | I70: -26.0668858
A71: 560 | B71: -8.179219106 | C71: -25.99265235 | D71: 0.1883447991 | E71: -0.1212196801 | F71: 0.2999481891 | G71: -0.4908679415 | H71: -8.192967822 | I71: -25.80715981
A72: 570 | B72: -8.234230598 | C72: -25.7395532 | D72: 0.1897373023 | E72: -0.1230888155 | F72: 0.3052420749 | G72: -0.4985429468 | H72: -8.248126135 | I72: -25.54938439
A73: 580 | B73: -8.287307805 | C73: -25.48857604 | D73: 0.1911512439 | E73: -0.1249426579 | F73: 0.3106179831 | G73: -0.5061614863 | H73: -8.301346397 | I73: -25.29372095
A74: 590 | B74: -8.3385319 | C74: -25.23986079 | D74: 0.1925864595 | E74: -0.1267809735 | F74: 0.3160753147 | G74: -0.5137226941 | H74: -8.352709862 | I74: -25.04031022
A75: 600 | B75: -8.387980341 | C75: -24.99352869 | D75: 0.194042782 | E75: -0.1286035303 | F75: 0.3216134615 | G75: -0.5212257105 | H75: -8.402294066 | I75: -24.78927415
A76: 610 | B76: -8.435727035 | C76: -24.74968403 | D76: 0.1955200418 | E76: -0.130410098 | F76: 0.3272318065 | G76: -0.5286696824 | H76: -8.450173 | I76: -24.54071775
A77: 620 | B77: -8.481842503 | C77: -24.50841584 | D77: 0.1970180672 | E77: -0.1322004481 | F77: 0.3329297235 | G77: -0.5360537631 | H77: -8.49641726 | I77: -24.29473068
A78: 630 | B78: -8.526394028 | C78: -24.26979931 | D78: 0.1985366836 | E78: -0.1339743539 | F78: 0.3387065777 | G78: -0.5433771124 | H78: -8.541094212 | I78: -24.05138877
A79: 640 | B79: -8.569445812 | C79: -24.03389719 | D79: =$B$3*COS(0*2*PI()*$A79/$B$2)+$B$4*COS(1*2*PI()*$A79/$B$2)+$B$5*COS(2*2*PI()*$A79/$B$2) -> 0.2000757143 | E79: =$B$3*SIN(0*2*PI()*$A79/$B$2)+$B$4*SIN(1*2*PI()*$A79/$B$2)+$B$5*SIN(2*2*PI()*$A79/$B$2) -> -0.1357315907 | F79: =1*COS(0*2*PI()*$A79/$B$2)+$B$6*COS(1*2*PI()*$A79/$B$2)+$B$7*COS(2*2*PI()*$A79/$B$2) -> 0.3445617252 | G79: =1*SIN(0*2*PI()*$A79/$B$2)+$B$6*SIN(1*2*PI()*$A79/$B$2)+$B$7*SIN(2*2*PI()*$A79/$B$2) -> -0.550638897 | H79: -8.584268135 | I79: -23.81075535
A80: 650 | B80: =20*LOG10(SQRT(1+($A80*2*PI())^2*$F$6^2)/SQRT(1+($A80*2*PI())^2*$F$7^2)) -> -8.611059114 | C80: =(ATAN2(1,2*PI()*$A80*$F$6)-ATAN2(1,2*PI()*$A80*$F$7))*180/PI() -> -23.80076099 | D80: 0.20163498 | E80: -0.1374719355 | F80: 0.3504945135 | G80: -0.5578382904 | H80: =20*LOG10(SQRT((D80*D80+E80*E80))/SQRT((F80*F80+G80*G80))) -> -8.626000368 | I80: =-(ATAN2(D80,E80)-ATAN2(F80,G80))*180/PI() -> -23.57288247
A81: 660 | B81: -8.651292391 | C81: -23.57043207 | D81: 0.2032142992 | E81: -0.1391951673 | F81: 0.3565042815 | G81: -0.564974473 | H81: -8.666349445 | I81: -23.33781199
A82: 670 | B82: -8.690201431 | C82: -23.34294265 | D82: 0.2048134879 | E82: -0.1409010672 | F82: 0.3625903594 | G82: -0.572046632 | H82: -8.705371231 | I82: -23.10557665
A83: 680 | B83: -8.727839478 | C83: -23.11831678 | D83: 0.2064323599 | E83: -0.1425894178 | F83: 0.3687520688 | G83: -0.5790539619 | H83: -8.743119046 | I83: -22.87620091
A84: 690 | B84: -8.764257356 | C84: -22.89657108 | D84: 0.2080707265 | E84: -0.1442600042 | F84: 0.374988723 | G84: -0.5859956643 | H84: -8.779643788 | I84: -22.64970184
A85: 700 | B85: -8.799503582 | C85: -22.67771558 | D85: 0.209728397 | E85: -0.1459126132 | F85: 0.3812996268 | G85: -0.5928709479 | H85: -8.814994049 | I85: -22.42608986
A86: 710 | B86: -8.83362448 | C86: -22.46175436 | D86: 0.211405178 | E86: -0.1475470337 | F86: 0.3876840769 | G86: -0.599679029 | H86: -8.849216224 | I86: -22.2053694
A87: 720 | B87: -8.866664284 | C87: -22.24868618 | D87: 0.2131008743 | E87: -0.1491630566 | F87: 0.3941413615 | G87: -0.6064191313 | H87: -8.882354618 | I87: -21.98753959
A88: 730 | B88: -8.898665241 | C88: -22.03850506 | D88: 0.2148152882 | E88: -0.150760475 | F88: 0.4006707608 | G88: -0.6130904857 | H88: -8.914451548 | I88: -21.77259476
A89: 740 | B89: -8.929667705 | C89: -21.83120079 | D89: 0.2165482197 | E89: -0.1523390841 | F89: 0.407271547 | G89: -0.6196923311 | H89: -8.945547436 | I89: -21.560525
A90: 750 | B90: -8.959710229 | C90: -21.62675938 | D90: 0.218299467 | E90: -0.153898681 | F90: 0.4139429843 | G90: -0.6262239138 | H90: -8.975680903 | I90: -21.3513166
A91: 760 | B91: -8.988829653 | C91: -21.42516351 | D91: 0.2200688258 | E91: -0.1554390653 | F91: 0.4206843288 | G91: -0.632684488 | H91: -9.004888854 | I91: -21.14495251
A92: 770 | B92: -9.017061187 | C92: -21.22639291 | D92: 0.2218560897 | E92: -0.1569600384 | F92: 0.4274948291 | G92: -0.6390733158 | H92: -9.033206562 | I92: -20.94141268
A93: 780 | B93: -9.044438488 | C93: -21.03042469 | D93: 0.2236610504 | E93: -0.1584614042 | F93: 0.4343737257 | G93: -0.6453896671 | H93: -9.060667745 | I93: -20.74067445
A94: 790 | B94: -9.070993734 | C94: -20.83723368 | D94: 0.2254834972 | E94: -0.1599429687 | F94: 0.4413202518 | G94: -0.6516328199 | H94: -9.087304645 | I94: -20.54271286
A95: 800 | B95: -9.096757698 | C95: -20.64679271 | D95: 0.2273232175 | E95: -0.1614045401 | F95: 0.4483336328 | G95: -0.6578020602 | H95: -9.113148094 | I95: -20.34750094
A96: 810 | B96: -9.121759816 | C96: -20.45907286 | D96: 0.2291799967 | E96: -0.1628459288 | F96: 0.4554130866 | G96: -0.6638966824 | H96: -9.138227584 | I96: -20.15500993
A97: 820 | B97: -9.146028246 | C97: -20.27404373 | D97: 0.231053618 | E97: -0.1642669477 | F97: 0.4625578239 | G97: -0.6699159888 | H97: -9.162571331 | I97: -19.9652096
A98: 830 | B98: -9.169589934 | C98: -20.09167361 | D98: 0.2329438628 | E98: -0.1656674119 | F98: 0.469767048 | G98: -0.6758592904 | H98: -9.186206337 | I98: -19.77806837
A99: 840 | B99: -9.192470672 | C99: -19.91192969 | D99: 0.2348505104 | E99: -0.1670471386 | F99: 0.4770399548 | G99: -0.6817259062 | H99: -9.209158445 | I99: -19.5935536
A100: 850 | B100: -9.214695149 | C100: -19.73477825 | D100: 0.2367733383 | E100: -0.1684059477 | F100: 0.4843757333 | G100: -0.6875151642 | H100: -9.231452397 | I100: -19.41163168
A101: 860 | B101: -9.236287006 | C101: -19.56018482 | D101: 0.2387121217 | E101: -0.1697436613 | F101: 0.4917735654 | G101: -0.6932264004 | H101: -9.253111886 | I101: -19.23226825
A102: 870 | B102: -9.257268886 | C102: -19.3881143 | D102: 0.2406666344 | E102: -0.1710601039 | F102: 0.4992326259 | G102: -0.6988589598 | H102: -9.274159603 | I102: -19.0554283
A103: 880 | B103: -9.277662479 | C103: -19.21853108 | D103: 0.2426366479 | E103: -0.1723551023 | F103: 0.5067520829 | G103: -0.704412196 | H103: -9.294617288 | I103: -18.88107635
A104: 890 | B104: -9.29748857 | C104: -19.05139922 | D104: 0.2446219322 | E104: -0.1736284859 | F104: 0.5143310977 | G104: -0.7098854713 | H104: -9.31450577 | I104: -18.70917652
A105: 900 | B105: -9.316767078 | C105: -18.88668247 | D105: 0.2466222551 | E105: -0.1748800865 | F105: 0.5219688249 | G105: -0.7152781569 | H105: -9.333845015 | I105: -18.53969264
A106: 910 | B106: -9.335517099 | C106: -18.72434444 | D106: 0.248637383 | E106: -0.1761097382 | F106: 0.5296644124 | G106: -0.720589633 | H106: -9.352654163 | I106: -18.3725884
A107: 920 | B107: -9.353756941 | C107: -18.56434863 | D107: 0.2506670802 | E107: -0.1773172779 | F107: 0.5374170018 | G107: -0.7258192887 | H107: -9.370951564 | I107: -18.20782734
A108: 930 | B108: -9.371504166 | C108: -18.40665854 | D108: 0.2527111095 | E108: -0.1785025447 | F108: 0.5452257282 | G108: -0.730966522 | H108: -9.388754822 | I108: -18.04537303
A109: 940 | B109: -9.388775618 | C109: -18.2512377 | D109: 0.2547692318 | E109: -0.1796653803 | F109: 0.5530897204 | G109: -0.7360307403 | H109: -9.406080822 | I109: -17.88518905
A110: 950 | B110: -9.405587461 | C110: -18.09804978 | D110: 0.2568412064 | E110: -0.1808056291 | F110: 0.5610081009 | G110: -0.74101136 | H110: -9.422945766 | I110: -17.72723911
A111: 960 | B111: -9.421955207 | C111: -17.94705862 | D111: 0.2589267908 | E111: -0.1819231378 | F111: 0.5689799864 | G111: -0.7459078068 | H111: -9.439365205 | I111: -17.57148708
A112: 970 | B112: -9.437893749 | C112: -17.79822826 | D112: 0.2610257412 | E112: -0.1830177559 | F112: 0.5770044871 | G112: -0.7507195157 | H112: -9.455354068 | I112: -17.41789704
A113: 980 | B113: -9.453417384 | C113: -17.65152302 | D113: 0.2631378117 | E113: -0.1840893354 | F113: 0.5850807078 | G113: -0.755445931 | H113: -9.470926689 | I113: -17.26643332
A114: 990 | B114: -9.468539845 | C114: -17.5069075 | D114: 0.2652627552 | E114: -0.1851377308 | F114: 0.593207747 | G114: -0.7600865066 | H114: -9.486096835 | I114: -17.11706056
A115: 1000 | B115: -9.483274324 | C115: -17.36434663 | D115: 0.2674003229 | E115: -0.1861627994 | F115: 0.6013846979 | G115: -0.7646407058 | H115: -9.500877732 | I115: -16.9697437
A116: 1010 | B116: -9.497633497 | C116: -17.22380573 | D116: 0.2695502645 | E116: -0.1871644011 | F116: 0.6096106479 | G116: -0.7691080015 | H116: -9.515282088 | I116: -16.82444806
A117: 1020 | B117: -9.511629545 | C117: -17.08525046 | D117: 0.2717123282 | E117: -0.1881423984 | F117: 0.6178846787 | G117: -0.7734878761 | H117: -9.529322117 | I117: -16.68113932
A118: 1030 | B118: -9.525274179 | C118: -16.94864692 | D118: 0.2738862607 | E118: -0.1890966564 | F118: 0.6262058669 | G118: -0.7777798217 | H118: -9.54300956 | I118: -16.5397836
A119: 1040 | B119: -9.538578658 | C119: -16.81396163 | D119: 0.2760718071 | E119: -0.1900270432 | F119: 0.6345732837 | G119: -0.7819833402 | H119: -9.556355706 | I119: -16.40034739
A120: 1050 | B120: -9.551553811 | C120: -16.68116154 | D120: 0.2782687115 | E120: -0.1909334292 | F120: 0.6429859949 | G120: -0.7860979434 | H120: -9.569371414 | I120: -16.26279766
A121: 1060 | B121: -9.564210055 | C121: -16.55021407 | D121: 0.2804767162 | E121: -0.1918156877 | F121: 0.6514430613 | G121: -0.7901231526 | H121: -9.582067128 | I121: -16.12710182
A122: 1070 | B122: -9.576557412 | C122: -16.42108709 | D122: 0.2826955623 | E122: -0.1926736949 | F122: 0.6599435389 | G122: -0.7940584993 | H122: -9.594452898 | I122: -15.99322774
A123: 1080 | B123: -9.588605529 | C123: -16.29374896 | D123: 0.2849249896 | E123: -0.1935073295 | F123: 0.6684864785 | G123: -0.7979035247 | H123: -9.606538395 | I123: -15.86114376
A124: 1090 | B124: -9.600363688 | C124: -16.16816852 | D124: 0.2871647366 | E124: -0.1943164731 | F124: 0.6770709261 | G124: -0.8016577803 | H124: -9.618332931 | I124: -15.73081872
A125: 1100 | B125: -9.611840831 | C125: -16.0443151 | D125: 0.2894145404 | E125: -0.1951010099 | F125: 0.6856959234 | G125: -0.8053208273 | H125: -9.62984547 | I125: -15.60222192
A126: 1110 | B126: -9.623045565 | C126: -15.92215851 | D126: 0.291674137 | E126: -0.1958608272 | F126: 0.694360507 | G126: -0.8088922373 | H126: -9.641084643 | I126: -15.47532316
A127: 1120 | B127: -9.633986183 | C127: -15.80166906 | D127: 0.2939432612 | E127: -0.1965958147 | F127: 0.7030637093 | G127: -0.8123715918 | H127: -9.652058768 | I127: -15.35009276
A128: 1130 | B128: -9.644670674 | C128: -15.68281758 | D128: 0.2962216464 | E128: -0.1973058653 | F128: 0.7118045584 | G128: -0.8157584825 | H128: -9.662775856 | I128: -15.22650148
A129: 1140 | B129: -9.655106737 | C129: -15.56557536 | D129: 0.2985090251 | E129: -0.1979908746 | F129: 0.7205820778 | G129: -0.8190525116 | H129: -9.673243628 | I129: -15.10452064
A130: 1150 | B130: -9.665301792 | C130: -15.44991422 | D130: 0.3008051286 | E130: -0.1986507408 | F130: 0.7293952873 | G130: -0.8222532913 | H130: -9.683469525 | I130: -14.984122
A131: 1160 | B131: -9.675262992 | C131: -15.33580645 | D131: 0.3031096869 | E131: -0.1992853653 | F131: 0.7382432022 | G131: -0.8253604442 | H131: -9.693460722 | I131: -14.86527784
A132: 1170 | B132: -9.684997237 | C132: -15.22322484 | D132: 0.3054224293 | E132: -0.1998946522 | F132: 0.7471248341 | G132: -0.8283736033 | H132: -9.703224138 | I132: -14.74796094
A133: 1180 | B133: -9.694511178 | C133: -15.11214268 | D133: 0.3077430837 | E133: -0.2004785084 | F133: 0.7560391908 | G133: -0.831292412 | H133: -9.712766444 | I133: -14.63214454
A134: 1190 | B134: -9.703811234 | C134: -15.00253374 | D134: 0.3100713773 | E134: -0.2010368439 | F134: 0.7649852762 | G134: -0.834116524 | H134: -9.722094078 | I134: -14.51780239
A135: 1200 | B135: -9.712903598 | C135: -14.89437227 | D135: 0.3124070362 | E135: -0.2015695714 | F135: 0.7739620907 | G135: -0.8368456038 | H135: -9.731213251 | I135: -14.40490871
A136: 1210 | B136: -9.721794245 | C136: -14.78763299 | D136: 0.3147497854 | E136: -0.2020766066 | F136: 0.7829686312 | G136: -0.839479326 | H136: -9.740129956 | I136: -14.29343821
A137: 1220 | B137: -9.730488944 | C137: -14.68229111 | D137: 0.3170993493 | E137: -0.202557868 | F137: 0.7920038912 | G137: -0.8420173761 | H137: -9.74884998 | I137: -14.18336605
A138: 1230 | B138: -9.738993265 | C138: -14.57832229 | D138: 0.3194554512 | E138: -0.2030132772 | F138: 0.8010668609 | G138: -0.8444594501 | H138: -9.75737891 | I138: -14.07466786
A139: 1240 | B139: -9.747312587 | C139: -14.47570266 | D139: 0.3218178136 | E139: -0.2034427587 | F139: 0.8101565272 | G139: -0.8468052545 | H139: -9.765722138 | I139: -13.96731975
A140: 1250 | B140: -9.755452102 | C140: -14.3744088 | D140: 0.3241861582 | E140: -0.2038462398 | F140: 0.8192718741 | G140: -0.8490545066 | H140: -9.773884877 | I140: -13.86129826
A141: 1260 | B141: -9.76341683 | C141: -14.27441775 | D141: 0.3265602058 | E141: -0.2042236508 | F141: 0.8284118827 | G141: -0.8512069343 | H141: -9.781872159 | I141: -13.75658039
A142: 1270 | B142: -9.77121162 | C142: -14.17570697 | D142: 0.3289396766 | E142: -0.2045749252 | F142: 0.8375755311 | G142: -0.8532622762 | H142: -9.789688849 | I142: -13.6531436
A143: 1280 | B143: -9.778841157 | C143: -14.07825438 | D143: =$B$3*COS(0*2*PI()*$A143/$B$2)+$B$4*COS(1*2*PI()*$A143/$B$2)+$B$5*COS(2*2*PI()*$A143/$B$2) -> 0.3313242901 | E143: =$B$3*SIN(0*2*PI()*$A143/$B$2)+$B$4*SIN(1*2*PI()*$A143/$B$2)+$B$5*SIN(2*2*PI()*$A143/$B$2) -> -0.2048999991 | F143: =1*COS(0*2*PI()*$A143/$B$2)+$B$6*COS(1*2*PI()*$A143/$B$2)+$B$7*COS(2*2*PI()*$A143/$B$2) -> 0.8467617948 | G143: =1*SIN(0*2*PI()*$A143/$B$2)+$B$6*SIN(1*2*PI()*$A143/$B$2)+$B$7*SIN(2*2*PI()*$A143/$B$2) -> -0.8552202819 | H143: -9.797339646 | I143: -13.55096574
A144: 1290 | B144: =20*LOG10(SQRT(1+($A144*2*PI())^2*$F$6^2)/SQRT(1+($A144*2*PI())^2*$F$7^2)) -> -9.78630997 | C144: =(ATAN2(1,2*PI()*$A144*$F$6)-ATAN2(1,2*PI()*$A144*$F$7))*180/PI() -> -13.98203831 | D144: 0.3337137649 | E144: -0.2051988118 | F144: 0.8559696466 | G144: -0.8570807114 | H144: =20*LOG10(SQRT((D144*D144+E144*E144))/SQRT((F144*F144+G144*G144))) -> -9.804829094 | I144: =-(ATAN2(D144,E144)-ATAN2(F144,G144))*180/PI() -> -13.45002512
A145: 1300 | B145: -9.793622439 | C145: -13.88703752 | D145: 0.336107819 | E145: -0.2054713055 | F145: 0.8651980568 | G145: -0.8588433357 | H145: -9.812161586 | I145: -13.35030047
A146: 1310 | B146: -9.800782799 | C146: -13.79323119 | D146: 0.33850617 | E146: -0.2057174256 | F146: 0.8744459934 | G146: -0.8605079367 | H146: -9.819341369 | I146: -13.25177093
A147: 1320 | B147: -9.807795144 | C147: -13.7005989 | D147: 0.3409085346 | E147: -0.2059371201 | F147: 0.8837124221 | G147: -0.8620743071 | H147: -9.826372552 | I147: -13.15441605
A148: 1330 | B148: -9.814663436 | C148: -13.60912063 | D148: 0.343314629 | E148: -0.2061303403 | F148: 0.8929963064 | G148: -0.8635422503 | H148: -9.833259109 | I148: -13.05821576
A149: 1340 | B149: -9.821391509 | C149: -13.51877675 | D149: 0.345724169 | E149: -0.2062970405 | F149: 0.9022966077 | G149: -0.8649115809 | H149: -9.840004886 | I149: -12.96315042
A150: 1350 | B150: -9.827983071 | C150: -13.42954802 | D150: 0.3481368697 | E150: -0.206437178 | F150: 0.9116122857 | G150: -0.8661821242 | H150: -9.846613602 | I150: -12.86920075
A151: 1360 | B151: -9.834441713 | C151: -13.3414156 | D151: 0.350552446 | E151: -0.2065507129 | F151: 0.920942298 | G151: -0.8673537165 | H151: -9.853088861 | I151: -12.77634785
A152: 1370 | B152: -9.84077091 | C152: -13.25436098 | D152: 0.352970612 | E152: -0.2066376086 | F152: 0.9302856007 | G152: -0.8684262052 | H152: -9.859434148 | I152: -12.68457321
A153: 1380 | B153: -9.846974026 | C153: -13.16836606 | D153: 0.3553910817 | E153: -0.2066978314 | F153: 0.9396411483 | G153: -0.8693994483 | H153: -9.865652839 | I153: -12.59385866
A154: 1390 | B154: -9.853054322 | C154: -13.08341305 | D154: 0.3578135685 | E154: -0.2067313507 | F154: 0.9490078937 | G154: -0.8702733153 | H154: -9.871748203 | I154: -12.50418641
A155: 1400 | B155: -9.859014952 | C155: -12.99948457 | D155: 0.3602377856 | E155: -0.206738139 | F155: 0.9583847886 | G155: -0.8710476863 | H155: -9.877723407 | I155: -12.41553901
A156: 1410 | B156: -9.864858975 | C156: -12.91656352 | D156: 0.3626634458 | E156: -0.2067181715 | F156: 0.9677707834 | G156: -0.8717224526 | H156: -9.883581519 | I156: -12.32789935
A157: 1420 | B157: -9.870589354 | C157: -12.83463319 | D157: 0.3650902617 | E157: -0.2066714269 | F157: 0.9771648273 | G157: -0.8722975165 | H157: -9.88932551 | I157: -12.24125067
A158: 1430 | B158: -9.876208958 | C158: -12.75367718 | D158: 0.3675179456 | E158: -0.2065978867 | F158: 0.9865658686 | G158: -0.8727727914 | H158: -9.894958261 | I158: -12.15557653
A159: 1440 | B159: -9.88172057 | C159: -12.6736794 | D159: 0.3699462095 | E159: -0.2064975354 | F159: 0.9959728547 | G159: -0.8731482017 | H159: -9.900482564 | I159: -12.07086082
A160: 1450 | B160: -9.887126889 | C160: -12.5946241 | D160: 0.3723747654 | E160: -0.2063703608 | F160: 1.005384732 | G160: -0.8734236828 | H160: -9.905901124 | I160: -11.98708774
A161: 1460 | B161: -9.892430529 | C161: -12.51649583 | D161: 0.374803325 | E161: -0.2062163534 | F161: 1.014800447 | G161: -0.8735991814 | H161: -9.911216567 | I161: -11.90424182
A162: 1470 | B162: -9.897634027 | C162: -12.43927945 | D162: 0.3772315998 | E162: -0.2060355072 | F162: 1.024218944 | G162: -0.873674655 | H162: -9.916431436 | I162: -11.82230788
A163: 1480 | B163: -9.902739843 | C163: -12.36296011 | D163: 0.3796593016 | E163: -0.2058278189 | F163: 1.03363917 | G163: -0.8736500723 | H163: -9.9215482 | I163: -11.74127103
A164: 1490 | B164: -9.907750362 | C164: -12.28752325 | D164: 0.3820861416 | E164: -0.2055932884 | F164: 1.043060067 | G164: -0.8735254132 | H164: -9.926569253 | I164: -11.66111668
A165: 1500 | B165: -9.9126679 | C165: -12.21295462 | D165: 0.3845118314 | E165: -0.2053319186 | F165: 1.052480581 | G165: -0.8733006686 | H165: -9.931496918 | I165: -11.58183053
A166: 1510 | B166: -9.917494704 | C166: -12.13924023 | D166: 0.3869360824 | E166: -0.2050437155 | F166: 1.061899657 | G166: -0.8729758404 | H166: -9.936333448 | I166: -11.50339857
A167: 1520 | B167: -9.922232954 | C167: -12.06636636 | D167: 0.3893586062 | E167: -0.2047286883 | F167: 1.071316238 | G167: -0.8725509417 | H167: -9.941081032 | I167: -11.42580704
A168: 1530 | B168: -9.926884765 | C168: -11.99431956 | D168: 0.3917791142 | E168: -0.2043868489 | F168: 1.08072927 | G168: -0.8720259967 | H168: -9.945741792 | I168: -11.34904246
A169: 1540 | B169: -9.931452193 | C169: -11.92308666 | D169: 0.3941973182 | E169: -0.2040182127 | F169: 1.090137696 | G169: -0.8714010406 | H169: -9.95031779 | I169: -11.27309162
A170: 1550 | B170: -9.935937233 | C170: -11.85265472 | D170: 0.3966129299 | E170: -0.2036227978 | F170: 1.099540463 | G170: -0.8706761199 | H170: -9.954811028 | I170: -11.19794155
A171: 1560 | B171: -9.940341821 | C171: -11.78301108 | D171: 0.3990256613 | E171: -0.2032006256 | F171: 1.108936516 | G171: -0.8698512919 | H171: -9.959223449 | I171: -11.12357955
A172: 1570 | B172: -9.94466784 | C172: -11.7141433 | D172: 0.4014352247 | E172: -0.2027517204 | F172: 1.118324802 | G172: -0.8689266251 | H172: -9.963556942 | I172: -11.04999316
A173: 1580 | B173: -9.948917116 | C173: -11.64603921 | D173: 0.4038413324 | E173: -0.2022761096 | F173: 1.127704267 | G173: -0.8679021992 | H173: -9.967813341 | I173: -10.97717015
A174: 1590 | B174: -9.953091428 | C174: -11.57868684 | D174: 0.406243697 | E174: -0.2017738237 | F174: 1.137073859 | G174: -0.8667781047 | H174: -9.971994427 | I174: -10.90509854
A175: 1600 | B175: -9.957192498 | C175: -11.51207448 | D175: 0.4086420316 | E175: -0.2012448961 | F175: 1.146432529 | G175: -0.8655544434 | H175: -9.976101933 | I175: -10.83376657
A176: 1610 | B176: -9.961222006 | C176: -11.44619063 | D176: 0.4110360495 | E176: -0.2006893635 | F176: 1.155779224 | G176: -0.8642313281 | H176: -9.98013754 | I176: -10.76316272
A177: 1620 | B177: -9.96518158 | C177: -11.38102402 | D177: 0.4134254643 | E177: -0.2001072655 | F177: 1.165112898 | G177: -0.8628088824 | H177: -9.984102884 | I177: -10.69327567
A178: 1630 | B178: -9.969072806 | C178: -11.31656359 | D178: 0.41580999 | E178: -0.1994986446 | F178: 1.174432501 | G178: -0.8612872412 | H178: -9.987999556 | I178: -10.62409435
A179: 1640 | B179: -9.972897224 | C179: -11.25279849 | D179: 0.4181893413 | E179: -0.1988635466 | F179: 1.183736989 | G179: -0.8596665502 | H179: -9.991829102 | I179: -10.55560786
A180: 1650 | B180: -9.976656333 | C180: -11.18971809 | D180: 0.4205632329 | E180: -0.1982020201 | F180: 1.193025317 | G180: -0.8579469663 | H180: -9.995593024 | I180: -10.48780554
A181: 1660 | B181: -9.980351589 | C181: -11.12731194 | D181: 0.4229313803 | E181: -0.1975141168 | F181: 1.202296442 | G181: -0.8561286572 | H181: -9.999292785 | I181: -10.42067691
A182: 1670 | B182: -9.983984409 | C182: -11.0655698 | D182: 0.4252934995 | E182: -0.1967998916 | F182: 1.211549322 | G182: -0.8542118016 | H182: -10.00292981 | I182: -10.3542117
A183: 1680 | B183: -9.987556173 | C183: -11.00448164 | D183: 0.4276493069 | E183: -0.1960594021 | F183: 1.220782919 | G183: -0.8521965891 | H183: -10.00650547 | I183: -10.28839984
A184: 1690 | B184: -9.991068222 | C184: -10.94403759 | D184: 0.4299985197 | E184: -0.1952927091 | F184: 1.229996196 | G184: -0.8500832203 | H184: -10.01002113 | I184: -10.22323143
A185: 1700 | B185: -9.99452186 | C185: -10.88422799 | D185: 0.4323408556 | E185: -0.1944998765 | F185: 1.239188118 | G185: -0.8478719067 | H185: -10.01347809 | I185: -10.15869678
A186: 1710 | B186: -9.997918359 | C186: -10.82504334 | D186: 0.4346760328 | E186: -0.1936809709 | F186: 1.248357651 | G186: -0.8455628705 | H186: -10.01687762 | I186: -10.09478636
A187: 1720 | B187: -10.00125895 | C187: -10.76647434 | D187: 0.4370037705 | E187: -0.1928360621 | F187: 1.257503766 | G187: -0.8431563449 | H187: -10.02022096 | I187: -10.03149083
A188: 1730 | B188: -10.00454485 | C188: -10.70851184 | D188: 0.4393237884 | E188: -0.1919652229 | F188: 1.266625434 | G188: -0.8406525739 | H188: -10.02350933 | I188: -9.968801026
A189: 1740 | B189: -10.00777722 | C189: -10.65114689 | D189: 0.4416358069 | E189: -0.1910685289 | F189: 1.27572163 | G189: -0.8380518123 | H189: -10.0267439 | I189: -9.906707945
A190: 1750 | B190: -10.0109572 | C190: -10.59437067 | D190: 0.4439395474 | E190: -0.1901460589 | F190: 1.284791331 | G190: -0.8353543256 | H190: -10.02992582 | I190: -9.845202756
A191: 1760 | B191: -10.01408591 | C191: -10.53817456 | D191: 0.4462347318 | E191: -0.1891978944 | F191: 1.293833518 | G191: -0.8325603902 | H191: -10.03305619 | I191: -9.78427679
A192: 1770 | B192: -10.01716442 | C192: -10.48255007 | D192: 0.4485210831 | E192: -0.1882241201 | F192: 1.302847173 | G192: -0.8296702929 | H192: -10.03613611 | I192: -9.723921538
A193: 1780 | B193: -10.0201938 | C193: -10.42748888 | D193: 0.4507983251 | E193: -0.1872248235 | F193: 1.311831283 | G193: -0.8266843316 | H193: -10.03916663 | I193: -9.664128648
A194: 1790 | B194: -10.02317506 | C194: -10.37298282 | D194: 0.4530661824 | E194: -0.186200095 | F194: 1.320784837 | G194: -0.8236028144 | H194: -10.04214879 | I194: -9.60488992
A195: 1800 | B195: -10.02610921 | C195: -10.31902387 | D195: 0.4553243806 | E195: -0.1851500281 | F195: 1.329706826 | G195: -0.8204260604 | H195: -10.04508359 | I195: -9.546197303
A196: 1810 | B196: -10.02899723 | C196: -10.26560416 | D196: 0.4575726462 | E196: -0.1840747189 | F196: 1.338596247 | G196: -0.8171543991 | H196: -10.047972 | I196: -9.488042893
A197: 1820 | B197: -10.03184006 | C197: -10.21271596 | D197: 0.4598107069 | E197: -0.1829742669 | F197: 1.3474521 | G197: -0.8137881704 | H197: -10.05081498 | I197: -9.430418929
A198: 1830 | B198: -10.03463863 | C198: -10.16035168 | D198: 0.4620382911 | E198: -0.1818487739 | F198: 1.356273386 | G198: -0.810327725 | H198: -10.05361346 | I198: -9.373317792
A199: 1840 | B199: -10.03739385 | C199: -10.10850386 | D199: 0.4642551286 | E199: -0.1806983451 | F199: 1.365059113 | G199: -0.806773424 | H199: -10.05636835 | I199: -9.316731999
A200: 1850 | B200: -10.04010659 | C200: -10.05716518 | D200: 0.4664609499 | E200: -0.1795230881 | F200: 1.373808291 | G200: -0.8031256387 | H200: -10.05908053 | I200: -9.260654201
A201: 1860 | B201: -10.04277772 | C201: -10.00632846 | D201: 0.4686554869 | E201: -0.1783231139 | F201: 1.382519934 | G201: -0.799384751 | H201: -10.06175086 | I201: -9.20507718
... 414 more rows
